fUST/lending_fUST_20250702
["ID","MTS","AMOUNT","RATE_DAILY","PERIOD"]
[368901782,1751387964476,-460.0,0.00017697,2]
[368901783,1751387964498,-460.0,0.00017697,2]
[368901784,1751387964519,-460.0,0.00017698,2]
[368901785,1751387964542,-460.0,0.00017698,2]
[368901786,1751387964567,-460.0,0.00017698,2]
[368901787,1751387964588,-343.78,0.00017698,2]
[368901788,1751387964610,-460.0,0.00017698,2]
[368901789,1751387964632,-460.0,0.00017698,2]
[368901790,1751387964655,-460.0,0.00017698,2]
[368901791,1751387964676,-460.0,0.00017698,2]
[368901792,1751387964697,-10449.55310178,0.00017698,2]
[368901795,1751388122666,-152.0,0.00017111,2]
[368901796,1751388128273,-152.70048686,0.00017111,2]
[368901797,1751388132795,-215.7231602,0.00017111,2]
[368901798,1751388134317,-175.73812141,0.00017111,2]
[368901799,1751388136384,-199.79247995,0.00017111,2]
[368901800,1751388141300,-206.03421299,0.00017111,2]
[368901801,1751388145818,-205.7632173,0.00017111,2]
[368901802,1751388148028,-329.66347564,0.00017111,2]
[368901803,1751388150596,-316.19229555,0.00017111,2]
[368901804,1751388152675,-271.9431591,0.00017111,2]
[368901805,1751388154880,1257.44568143,0.000171,2]
[368901806,1751388157810,-246.91886229,0.00017111,2]
[368901807,1751388160097,-197.99027078,0.00017111,2]
[368901808,1751388162396,-241.19631906,0.00017111,2]
[368901809,1751388165110,-300.0,0.00017111,2]
[368901810,1751388172985,-374.74750462,0.00017111,2]
[368901811,1751388173159,716.85229217,0.000171,2]
[368901812,1751388174513,-178.53683612,0.00017111,2]
[368901813,1751388180386,-176.27815085,0.00017111,2]
[368901814,1751388181833,-156.16817681,0.00017111,2]
[368901815,1751388183896,-256.76557787,0.0001711,2]
[368901816,1751388185942,-43.23442213,0.0001711,2]
[368901817,1751388185966,-172.67762291,0.00017111,2]
[368901818,1751388188759,1895.24948031,0.000171,2]
[368901819,1751388188999,-160.06051857,0.00017111,2]
[368901820,1751388191055,-216.62346755,0.00017111,2]
[368901821,1751388196543,-243.37653245,0.00017111,2]
[368901822,1751388199246,-158.86805727,0.00017111,2]
[368901823,1751388204492,-342.81067904,0.00017111,2]
[368901824,1751388204734,376.68398612,0.000171,2]
[368901825,1751388206091,-186.37469606,0.00017111,2]
[368901826,1751388209582,-240.24862054,0.00017111,2]
[368901827,1751388212843,-215.22982832,0.00017111,2]
[368901828,1751388214892,-211.07840343,0.00017111,2]
[368901829,1751388221033,-241.71260197,0.00017111,2]
[368901830,1751388223435,-216.48245685,0.00017111,2]
[368901831,1751388225975,-242.4842994,0.00017111,2]
[368901832,1751388229254,-228.82799252,0.00017111,2]
[368901833,1751388234394,-269.20889081,0.00017111,2]
[368901834,1751388238127,-191.95058838,0.00017111,2]
[368901835,1751388242269,-200.14038151,0.00017111,2]
[368901836,1751388250214,-217.74620979,0.0001711,2]
[368901837,1751388253745,-82.25379021,0.0001711,2]
[368901838,1751388253772,-285.81734131,0.00017111,2]
[368901839,1751388258792,-151.48498827,0.00017111,2]
[368901840,1751388263859,-194.40421781,0.0001711,2]
[368901841,1751388265194,438.2259714,0.00016774,2]
[368901843,1751388270330,-159.69101139,0.0001711,2]
[368901844,1751388277856,-105.9047708,0.0001711,2]
[368901845,1751388277881,-217.60135878,0.00017111,2]
[368901846,1751388283444,-300.0,0.00017111,2]
[368901847,1751388285638,-189.9104735,0.00017111,2]
[368901848,1751388288205,-215.7231602,0.0001711,2]
[368901849,1751388296244,-192.36429118,0.0001711,2]
[368901850,1751388300819,-175.29254862,0.0001711,2]
[368901851,1751388300848,-43.57271617,0.0001711,2]
[368901852,1751388304039,-363.98273888,0.0001711,2]
[368901853,1751388307631,1610.11377165,0.000171,2]
[368901854,1751388309980,-161.64454495,0.0001711,2]
[368901855,1751388310002,-60.50131355,0.0001711,2]
[368901856,1751388313824,-194.53859551,0.0001711,2]
[368901857,1751388318869,-44.96009094,0.0001711,2]
[368901858,1751388318895,-272.97330849,0.0001711,2]
[368901859,1751388328889,-187.02669151,0.0001711,2]
[368901860,1751388328912,-39.9871053,0.0001711,2]
[368901861,1751388333590,-165.03300639,0.0001711,2]
[368901862,1751388338158,-3.97988831,0.0001711,2]
[368901863,1751388338181,-1059.61170267,0.00017111,2]
[368901864,1751388339005,-225.10085961,0.00017111,2]
[368901865,1751388346354,302.11003276,0.00016597,2]
[368901866,1751388348114,-273.28929679,0.0001711,2]
[368901869,1751388370754,208.687459,0.00013699,2]
[368901870,1751388381891,171.93302245,0.00017011,2]
[368901871,1751388425086,-186.71070321,0.0001711,2]
[368901872,1751388425107,-240.0,0.0001711,2]
[368901873,1751388425130,-460.0,0.0001711,2]
[368901874,1751388425151,-460.0,0.0001711,2]
[368901875,1751388425175,-460.0,0.0001711,2]
[368901876,1751388425199,-175.6940261,0.0001711,2]
[368901877,1751388481645,171.93302245,0.0001701,2]
[368901878,1751388546114,-284.3059739,0.0001711,2]
[368901879,1751388546136,-275.83062781,0.0001711,2]
[368901880,1751388547107,-184.16937219,0.0001711,2]
[368901881,1751388547130,-460.0,0.0001711,2]
[368901882,1751388547151,-471.73267004,0.0001711,2]
[368901883,1751388547177,-460.0,0.0001711,2]
[368901884,1751388547200,-460.0,0.0001711,2]
[368901885,1751388547225,-460.0,0.0001711,2]
[368901886,1751388547249,-460.0,0.0001711,2]
[368901887,1751388547273,-460.0,0.0001711,2]
[368901888,1751388547295,-460.0,0.0001711,2]
[368901889,1751388547317,-460.0,0.0001711,2]
[368901890,1751388547340,-460.0,0.0001711,2]
[368901891,1751388547364,-460.0,0.0001711,2]
[368901892,1751388547386,-460.0,0.0001711,2]
[368901893,1751388547409,-541.33014836,0.0001711,2]
[368901894,1751388547432,-460.0,0.0001711,2]
[368901895,1751388547454,-460.0,0.0001711,2]
[368901896,1751388547477,-7879.66198991,0.0001711,2]
[368901897,1751388547499,-13070.68771272,0.00017111,2]
[368901900,1751388550118,-679.15735516,0.00017111,2]
[368901901,1751388550146,-885.08584087,0.00017111,2]
[368901902,1751388550166,-151.05501638,0.00017166,2]
[368901903,1751388575768,-235.85250265,0.00017384,2]
[368901904,1751388578841,460.0,0.0001711,2]
[368901905,1751388585839,13.52004742,0.00017165,2]
[368901925,1751388631973,-460.0,0.0001711,2]
[368901927,1751388631984,-460.0,0.0001711,2]
[368901930,1751388631997,-460.0,0.0001711,2]
[368901932,1751388632008,-446.47995258,0.00017165,2]
[368901934,1751388632019,-460.0,0.00017165,2]
[368901936,1751388632030,-300.0,0.00017383,2]
[368901938,1751388632041,-224.14749735,0.00017384,2]
[368901940,1751388632051,-460.0,0.00017384,2]
[368901942,1751388632062,-460.0,0.00017384,2]
[368901944,1751388632072,-474.95382324,0.00017384,2]
[368901946,1751388632083,-460.0,0.00017384,2]
[368901948,1751388632093,-460.0,0.00017384,2]
[368901949,1751388632104,-460.0,0.00017384,2]
[368901950,1751388632114,-529.59818556,0.00017384,2]
[368901951,1751388632125,-460.0,0.00017384,2]
[368901952,1751388632135,-460.0,0.00017384,2]
[368901953,1751388632146,-460.0,0.00017384,2]
[368901954,1751388632156,-441.365804,0.00017384,2]
[368901955,1751388632168,-460.0,0.00017384,2]
[368901956,1751388632180,-460.0,0.00017384,2]
[368901957,1751388632191,-460.0,0.00017384,2]
[368901958,1751388632203,-460.0,0.00017384,2]
[368901959,1751388632214,-460.0,0.00017439,2]
[368901960,1751388632225,-460.0,0.00017658,2]
[368901961,1751388632236,-460.0,0.00017658,2]
[368901962,1751388632247,-460.0,0.00017658,2]
[368901963,1751388632258,-460.0,0.00017658,2]
[368901964,1751388632270,-460.0,0.00017658,2]
[368901965,1751388632282,-460.0,0.00017658,2]
[368901966,1751388632294,-460.0,0.00017658,2]
[368901967,1751388632307,-460.0,0.00017658,2]
[368901968,1751388632317,-460.0,0.00017658,2]
[368901969,1751388632508,-364.81,0.00017658,2]
[368901970,1751388632520,-338.20329537,0.00017658,2]
[368901971,1751388632530,-562.91055632,0.00017658,2]
[368901972,1751388632540,-500.0,0.00017673,2]
[368901973,1751388632559,-500.0,0.00017696,2]
[368901974,1751388632571,-323.23424258,0.00017696,2]
[368901975,1751388632581,-500.0,0.00017696,2]
[368901976,1751388632591,-471.26842436,0.00017696,2]
[368901977,1751388632602,-500.0,0.00017696,2]
[368901978,1751388632612,-500.0,0.00017696,2]
[368901979,1751388632622,-572.95598846,0.00017696,2]
[368901980,1751388632632,-500.0,0.00017696,2]
[368901981,1751388632642,-500.0,0.00017696,2]
[368901982,1751388632653,-614.85573095,0.00017696,2]
[368901983,1751388632662,-500.0,0.00017696,2]
[368901984,1751388632673,-500.0,0.00017696,2]
[368901985,1751388632683,-641.15514792,0.00017696,2]
[368901986,1751388632694,-400.69505898,0.00017696,2]
[368901987,1751388632704,-500.0,0.00017696,2]
[368901988,1751388632714,-500.0,0.00017696,2]
[368901989,1751388632725,-500.0,0.00017696,2]
[368901990,1751388632735,-64.72310599,0.00017696,2]
[368901991,1751388632753,-412.22575383,0.00017696,2]
[368901992,1751388632767,-23.05114018,0.00017696,2]
[368901993,1751388632776,-464.71279249,0.00017696,2]
[368901994,1751388632788,-35.28720751,0.00017696,2]
[368901995,1751388632798,-500.0,0.00017696,2]
[368901996,1751388632808,-500.0,0.00017696,2]
[368901997,1751388632817,-289.7191986,0.00017696,2]
[368901998,1751388632827,-272.07629339,0.00017696,2]
[368901999,1751388632836,-500.0,0.00017696,2]
[368902000,1751388632846,-500.0,0.00017696,2]
[368902001,1751388632856,-400.0,0.00017696,2]
[368902002,1751388632866,-500.0,0.00017696,2]
[368902003,1751388632876,-500.0,0.00017696,2]
[368902004,1751388632885,-500.0,0.00017696,2]
[368902005,1751388632895,-141.5893005,0.00017696,2]
[368902006,1751388632917,-358.4106995,0.00017696,2]
[368902007,1751388632927,-452.90178786,0.00017696,2]
[368902008,1751388632941,-47.09821214,0.00017696,2]
[368902009,1751388632956,-500.0,0.00017696,2]
[368902010,1751388632967,-500.0,0.00017696,2]
[368902011,1751388632977,-500.0,0.00017696,2]
[368902012,1751388632987,-500.0,0.00017696,2]
[368902013,1751388632998,-500.0,0.00017696,2]
[368902014,1751388633008,-500.0,0.00017696,2]
[368902015,1751388633020,-221.97652628,0.00017696,2]
[368902016,1751388637923,-460.0,0.0001711,2]
[368902017,1751388637934,-312.16867856,0.00017384,2]
[368902018,1751388637949,-147.83132144,0.00017384,2]
[368902019,1751388637959,-460.0,0.00017658,2]
[368902020,1751388637969,-278.02347372,0.00017696,2]
[368902021,1751388637980,-500.0,0.00017696,2]
[368902024,1751388637990,-500.0,0.00017696,2]
[368902026,1751388638000,-500.0,0.00017696,2]
[368902028,1751388638009,-500.0,0.00017696,2]
[368902030,1751388638019,-500.0,0.00017696,2]
[368902032,1751388638031,-500.0,0.00017696,2]
[368902034,1751388638040,-500.0,0.00017696,2]
[368902036,1751388638050,-472.84158743,0.00017696,2]
[368902038,1751388638062,-27.15841257,0.00017696,2]
[368902040,1751388638071,-500.0,0.00017696,2]
[368902042,1751388638081,-500.0,0.00017696,2]
[368902044,1751388638090,-500.0,0.00017696,2]
[368902046,1751388638100,-500.0,0.00017696,2]
[368902048,1751388638109,-517.22251506,0.00017696,2]
[368902050,1751388638119,-500.0,0.00017696,2]
[368902052,1751388638128,-500.0,0.00017696,2]
[368902054,1751388638138,-500.0,0.00017696,2]
[368902056,1751388638148,-500.0,0.00017696,2]
[368902058,1751388638157,-500.0,0.00017696,2]
[368902060,1751388638167,-626.42101059,0.00017696,2]
[368902062,1751388638177,-500.0,0.00017696,2]
[368902064,1751388638186,-500.0,0.00017696,2]
[368902066,1751388638195,-192.09315671,0.00017696,2]
[368902068,1751388638205,-460.0,0.00017696,2]
[368902070,1751388638214,-460.0,0.00017696,2]
[368902073,1751388638225,-151.0,0.00017696,2]
[368902075,1751388638234,-151.0,0.00017696,2]
[368902077,1751388638244,-460.0,0.00017697,2]
[368902079,1751388638253,-460.0,0.00017697,2]
[368902081,1751388638262,-83.08406124,0.00017697,2]
[368902084,1751388638283,-376.91593876,0.00017697,2]
[368902086,1751388638293,-460.0,0.00017697,2]
[368902088,1751388638302,-460.0,0.00017697,2]
[368902090,1751388638311,-460.0,0.00017697,2]
[368902092,1751388638321,-462.07946982,0.00017697,2]
[368902094,1751388638331,-460.0,0.00017697,2]
[368902096,1751388638341,-460.0,0.00017697,2]
[368902098,1751388638349,-460.0,0.00017697,2]
[368902100,1751388638359,-460.0,0.00017697,2]
[368902102,1751388638368,-413.51343539,0.00017697,2]
[368902104,1751388638377,-460.0,0.00017697,2]
[368902106,1751388638387,-460.0,0.00017697,2]
[368902108,1751388638396,-460.0,0.00017697,2]
[368902110,1751388638405,-460.0,0.00017697,2]
[368902112,1751388638415,-460.0,0.00017697,2]
[368902114,1751388638424,-460.0,0.00017697,2]
[368902116,1751388638434,-460.0,0.00017697,2]
[368902118,1751388638443,-460.0,0.00017697,2]
[368902120,1751388638452,-460.0,0.00017697,2]
[368902122,1751388638461,-460.0,0.00017697,2]
[368902124,1751388638471,-430.33752276,0.00017698,2]
[368902126,1751388638488,-460.0,0.00017698,2]
[368902128,1751388638498,-500.0,0.00017698,2]
[368902130,1751388638507,-460.0,0.00017698,2]
[368902132,1751388638517,-460.0,0.00017698,2]
[368902134,1751388638528,-460.0,0.00017698,2]
[368902136,1751388638537,-460.0,0.00017698,2]
[368902139,1751388638547,-460.0,0.00017698,2]
[368902141,1751388638557,-691.47,0.00017698,2]
[368902143,1751388638567,-460.0,0.00017698,2]
[368902144,1751388638578,-460.0,0.00017698,2]
[368902146,1751388638587,-460.0,0.00017713,2]
[368902148,1751388638596,-165.48402784,0.00017749,2]
[368902150,1751388638605,-460.0,0.00017851,2]
[368902152,1751388638615,-460.0,0.00017851,2]
[368902155,1751388638625,-460.0,0.00017851,2]
[368902157,1751388638634,-460.0,0.00017851,2]
[368902159,1751388638644,-460.0,0.00017851,2]
[368902161,1751388638654,-460.0,0.00017851,2]
[368902163,1751388638664,-460.0,0.00017851,2]
[368902165,1751388638674,-460.0,0.00017853,2]
[368902167,1751388638683,-460.0,0.00017853,2]
[368902169,1751388638694,-243.46794649,0.00017853,2]
[368902171,1751388638703,-460.0,0.00017853,2]
[368902173,1751388638712,-152.70048686,0.00017853,2]
[368902175,1751388638722,-460.0,0.00017853,2]
[368902177,1751388638732,-460.0,0.00017853,2]
[368902179,1751388638741,-460.0,0.00017853,2]
[368902181,1751388638750,-460.0,0.00017853,2]
[368902183,1751388638759,-460.0,0.00017853,2]
[368902185,1751388638768,-460.0,0.00017853,2]
[368902187,1751388638777,-460.0,0.00017932,2]
[368902189,1751388638787,-228.19,0.00017932,2]
[368902191,1751388638796,-460.0,0.00017932,2]
[368902193,1751388638806,-603.76545431,0.00017932,2]
[368902195,1751388638815,-460.0,0.00017932,2]
[368902197,1751388638825,-460.0,0.00017932,2]
[368902199,1751388638834,-460.0,0.00017932,2]
[368902201,1751388638844,-344.17,0.00017932,2]
[368902203,1751388638853,-460.0,0.00017932,2]
[368902205,1751388638863,-460.0,0.00017932,2]
[368902207,1751388638872,-460.0,0.0001797,2]
[368902209,1751388638881,-460.0,0.0001797,2]
[368902211,1751388638890,-460.0,0.00017971,2]
[368902213,1751388638900,-460.0,0.00017971,2]
[368902215,1751388638910,-460.0,0.00017971,2]
[368902217,1751388638919,-460.0,0.00017971,2]
[368902219,1751388638929,-538.76,0.00017971,2]
[368902221,1751388638938,-562.58,0.00017971,2]
[368902223,1751388638949,-460.0,0.00017971,2]
[368902225,1751388638959,-460.0,0.00017971,2]
[368902227,1751388638969,-460.0,0.00017971,2]
[368902228,1751388638979,-460.0,0.00017972,2]
[368902231,1751388638988,-460.0,0.00017972,2]
[368902232,1751388638999,-460.0,0.00017972,2]
[368902234,1751388639009,-691.47,0.00017972,2]
[368902237,1751388639019,-460.0,0.00017972,2]
[368902239,1751388639030,-460.0,0.00017972,2]
[368902241,1751388639040,-460.0,0.00017987,2]
[368902242,1751388639049,-163.44,0.00018,2]
[368902245,1751388639059,-460.0,0.00018125,2]
[368902246,1751388639069,-460.0,0.00018125,2]
[368902248,1751388639078,-460.0,0.00018125,2]
[368902250,1751388639088,-460.0,0.00018125,2]
[368902252,1751388639097,-460.0,0.00018125,2]
[368902255,1751388639107,-460.0,0.00018125,2]
[368902257,1751388639117,-460.0,0.00018125,2]
[368902259,1751388639127,-460.0,0.00018127,2]
[368902260,1751388639136,-460.0,0.00018127,2]
[368902262,1751388639145,-519.38,0.00018127,2]
[368902264,1751388639155,-265.56,0.00018206,2]
[368902266,1751388639164,-460.0,0.00018206,2]
[368902268,1751388639174,-303.28,0.00018206,2]
[368902270,1751388639183,-460.0,0.00018206,2]
[368902273,1751388639192,-460.0,0.00018206,2]
[368902275,1751388639202,-460.0,0.00018206,2]
[368902277,1751388639211,-460.0,0.00018206,2]
[368902279,1751388639220,-1000.0,0.00018221,2]
[368902281,1751388639230,-460.0,0.00018244,2]
[368902283,1751388639239,-460.0,0.00018244,2]
[368902285,1751388639248,-460.0,0.00018245,2]
[368902287,1751388639258,-460.0,0.00018245,2]
[368902289,1751388639268,-460.0,0.00018245,2]
[368902291,1751388639277,-460.0,0.00018245,2]
[368902293,1751388639287,-348.28762955,0.00018245,2]
[368902295,1751388639297,-460.0,0.00018245,2]
[368902297,1751388639306,-460.0,0.00018245,2]
[368902298,1751388639316,-460.0,0.00018245,2]
[368902300,1751388639325,-309.51892845,0.00018245,2]
[368902302,1751388639334,-460.0,0.00018245,2]
[368902304,1751388639344,-460.0,0.00018245,2]
[368902307,1751388639354,-460.0,0.00018245,2]
[368902308,1751388639363,-460.0,0.00018245,2]
[368902310,1751388639373,-460.0,0.00018245,2]
[368902312,1751388639382,-161.43,0.00018245,2]
[368902314,1751388639391,-460.0,0.00018245,2]
[368902316,1751388639401,-487.41,0.00018245,2]
[368902318,1751388639410,-460.0,0.00018245,2]
[368902320,1751388639419,-460.0,0.00018245,2]
[368902322,1751388639429,-460.0,0.00018245,2]
[368902325,1751388639438,-546.48,0.00018246,2]
[368902328,1751388639448,-460.0,0.00018246,2]
[368902330,1751388639458,-691.47,0.00018246,2]
[368902332,1751388639467,-460.0,0.00018246,2]
[368902333,1751388639477,-460.0,0.00018246,2]
[368902336,1751388639487,-460.0,0.00018261,2]
[368902337,1751388639497,-318.19245821,0.00018399,2]
[368902339,1751388639507,-460.0,0.00018399,2]
[368902342,1751388639517,-460.0,0.00018399,2]
[368902343,1751388639526,-343.95,0.00018399,2]
[368902346,1751388639537,-460.0,0.00018399,2]
[368902348,1751388639546,-489.71,0.00018399,2]
[368902350,1751388639555,-460.0,0.00018399,2]
[368902352,1751388639564,-460.0,0.00018401,2]
[368902354,1751388639574,-460.0,0.00018401,2]
[368902356,1751388639584,-460.0,0.0001848,2]
[368902358,1751388639595,-460.0,0.0001848,2]
[368902360,1751388639604,-460.0,0.0001848,2]
[368902362,1751388639613,-460.0,0.0001848,2]
[368902364,1751388639622,-488.13326042,0.0001848,2]
[368902366,1751388639632,-3000.0,0.000185,2]
[368902368,1751388639641,-216.58999822,0.00018518,2]
[368902370,1751388639651,-460.0,0.00018518,2]
[368902372,1751388639660,-460.0,0.00018519,2]
[368902374,1751388639670,-460.0,0.00018519,2]
[368902376,1751388639679,-466.59,0.00018519,2]
[368902379,1751388639688,-460.0,0.00018519,2]
[368902381,1751388639698,-460.0,0.00018519,2]
[368902383,1751388639708,-460.0,0.00018519,2]
[368902385,1751388639717,-460.0,0.00018519,2]
[368902387,1751388639727,-460.0,0.00018519,2]
[368902389,1751388639737,-460.0,0.00018519,2]
[368902391,1751388639746,-335.36,0.00018519,2]
[368902393,1751388639756,-460.0,0.00018519,2]
[368902395,1751388639765,-460.0,0.00018519,2]
[368902397,1751388639774,-460.0,0.0001852,2]
[368902399,1751388639783,-691.47,0.0001852,2]
[368902401,1751388639793,-460.0,0.0001852,2]
[368902403,1751388639803,-460.0,0.0001852,2]
[368902405,1751388639812,-460.0,0.00018535,2]
[368902407,1751388639822,-460.0,0.00018544,2]
[368902409,1751388639831,-460.0,0.00018544,2]
[368902411,1751388639841,-460.0,0.00018544,2]
[368902413,1751388639850,-460.0,0.00018544,2]
[368902415,1751388639859,-460.0,0.00018544,2]
[368902417,1751388639869,-460.0,0.00018544,2]
[368902419,1751388639878,-460.0,0.00018544,2]
[368902421,1751388639888,-460.0,0.00018544,2]
[368902423,1751388639898,-273.65587827,0.00018544,2]
[368902425,1751388639908,-460.0,0.00018545,2]
[368902427,1751388639918,-180.95,0.00018673,2]
[368902429,1751388639927,-387.01634406,0.00018673,2]
[368902431,1751388639937,-460.0,0.00018673,2]
[368902432,1751388639949,-156.33,0.00018673,2]
[368902433,1751388639958,-460.0,0.00018675,2]
[368902434,1751388639967,-460.0,0.00018675,2]
[368902435,1751388639976,-248.72,0.00018754,2]
[368902436,1751388639986,-460.0,0.00018754,2]
[368902437,1751388639995,-386.8942994,0.00018754,2]
[368902438,1751388640004,-460.0,0.00018754,2]
[368902439,1751388640014,-1500.0,0.00018768,2]
[368902440,1751388640025,-165.48402779,0.0001879,2]
[368902441,1751388640035,-460.0,0.00018792,2]
[368902442,1751388640045,-460.0,0.00018793,2]
[368902443,1751388640054,-528.72,0.00018793,2]
[368902444,1751388640063,-460.0,0.00018793,2]
[368902445,1751388640073,-460.0,0.00018793,2]
[368902446,1751388640082,-460.0,0.00018793,2]
[368902447,1751388640091,-460.0,0.00018793,2]
[368902448,1751388640101,-460.0,0.00018793,2]
[368902449,1751388640110,-460.0,0.00018793,2]
[368902450,1751388640119,-460.0,0.00018793,2]
[368902452,1751388640129,-460.0,0.00018794,2]
[368902454,1751388640138,-691.47,0.00018794,2]
[368902456,1751388640148,-418.36281846,0.00018794,2]
[368902458,1751388640158,-460.0,0.00018794,2]
[368902460,1751388640168,-460.0,0.00018809,2]
[368902478,1751388640305,-460.0,0.00018818,2]
[368902480,1751388640315,-460.0,0.00018818,2]
[368902482,1751388640325,-589.18,0.00018818,2]
[368902484,1751388640335,-460.0,0.00018818,2]
[368902486,1751388640345,-150.0,0.000189,2]
[368902488,1751388640354,-1135.73851188,0.000189,2]
[368902490,1751388640364,-460.0,0.00018947,2]
[368902492,1751388640373,-315.4,0.00018949,2]
[368902494,1751388640383,-420.0,0.00018979,2]
[368902496,1751388640392,-302.48582854,0.00019,2]
[368902498,1751388640402,-302.45563732,0.00019,2]
[368902500,1751388640411,-460.0,0.00019028,2]
[368902502,1751388640421,-460.0,0.00019028,2]
[368902504,1751388640430,-460.0,0.00019066,2]
[368902506,1751388640440,-460.0,0.00019067,2]
[368902508,1751388640449,-460.0,0.00019067,2]
[368902510,1751388640459,-460.0,0.00019067,2]
[368902512,1751388640468,-460.0,0.00019067,2]
[368902514,1751388640478,-460.0,0.00019067,2]
[368902517,1751388640488,-460.0,0.00019067,2]
[368902519,1751388640498,-460.0,0.00019067,2]
[368902521,1751388640508,-460.0,0.00019068,2]
[368902523,1751388640518,-691.47,0.00019068,2]
[368902525,1751388640527,-460.0,0.00019068,2]
[368902527,1751388640536,-163.44,0.00019082,2]
[368902529,1751388640545,-460.0,0.00019083,2]
[368902531,1751388640554,-460.0,0.00019092,2]
[368902532,1751388640564,-460.0,0.00019092,2]
[368902534,1751388640574,-1135.73851188,0.00019141,2]
[368902536,1751388640583,-187.999038,0.00019178,2]
[368902538,1751388640593,-302.48582854,0.0001919,2]
[368902541,1751388640603,-302.45563732,0.0001919,2]
[368902542,1751388640612,-460.0,0.00019221,2]
[368902545,1751388640623,-460.0,0.00019302,2]
[368902547,1751388640633,-460.0,0.00019302,2]
[368902549,1751388640642,-668.13,0.00019331,3]
[368902551,1751388640651,-460.0,0.0001934,2]
[368902553,1751388640661,-460.0,0.00019341,2]
[368902555,1751388640670,-460.0,0.00019341,2]
[368902557,1751388640680,-460.0,0.00019341,2]
[368902559,1751388640690,-460.0,0.00019341,2]
[368902561,1751388640699,-345.79,0.00019341,2]
[368902563,1751388640709,-460.0,0.00019341,2]
[368902565,1751388640719,-460.0,0.00019341,2]
[368902567,1751388640728,-460.0,0.00019342,2]
[368902569,1751388640738,-691.47,0.00019342,2]
[368902571,1751388640747,-460.0,0.00019342,2]
[368902573,1751388640757,-460.0,0.00019357,2]
[368902575,1751388640766,-460.0,0.00019366,2]
[368902577,1751388640776,-302.48582854,0.0001938,2]
[368902579,1751388640785,-167.77456196,0.0001938,2]
[368902581,1751388640795,-1135.73851188,0.00019383,2]
[368902583,1751388640804,-460.0,0.00019495,2]
[368902585,1751388640814,-3000.0,0.000195,2]
[368902587,1751388640823,-302.48582854,0.0001957,2]
[368902589,1751388640832,-460.0,0.00019576,2]
[368902591,1751388640842,-460.0,0.00019576,2]
[368902594,1751388640852,-160.0,0.00019592,2]
[368902596,1751388640862,-160.0,0.00019592,2]
[368902597,1751388640871,-230.32585361,0.00019592,2]
[368902599,1751388640880,-213.87551669,0.00019592,2]
[368902602,1751388640889,-215.01728679,0.00019592,2]
[368902604,1751388640899,-160.0,0.00019592,2]
[368902606,1751388640910,-837.20943635,0.00019592,2]
[368902608,1751388640923,-847.53272281,0.00019594,2]
[368902610,1751388640934,-460.0,0.00019614,2]
[368902612,1751388640943,-460.0,0.00019615,2]
[368902614,1751388640956,-460.0,0.00019615,2]
[368902616,1751388640965,-460.0,0.00019615,2]
[368902618,1751388640975,-197.87320011,0.00019615,2]
[368902620,1751388640984,-460.0,0.00019615,2]
[368902622,1751388640995,-460.0,0.00019615,2]